[Event "95th Caplin Hastings Congress"]
[Site "Hastings"]
[Date "2020.01.01"]
[Round "5.53"]
[White "Dewangan, Aayush"]
[Black "Gisbert Mir, Alejandro"]
[Result "1-0"]
[ECO "B13"]
[WhiteElo "1548"]
[BlackElo "1835"]
[Annotator "NA RC"]
[PlyCount "49"]
[EventDate "2019.12.28"]
[EventType "swiss"]
[EventCountry "ENG"]
[SourceTitle "playchess.com"]
[Source "ChessBase"]
[SourceQuality "1"]
[TimeControl "40/6600+30:3000+30"]

1. e4 {[%emt 0:00:16]} c6 {[%emt 0:11:06]} 2. d4 {[%emt 0:09:40]} d5 {[%emt 0:00:17]} 3. exd5 {[%emt 0:00:44]} cxd5 {[%emt 0:00:05]} 4. Bd3 {[%emt 0:00:10]} Nc6 {[%emt 0:00:08]} 5. c3 {[%emt 0:00:07]} Nf6 {[%emt 0:00:39]} 6. Bf4 {[%emt 0:00:09]} e6 {[%emt 0:01:43]} 7. Nf3 {[%emt 0:01:06]} Bd6 {[%emt 0:02:53]} 8. Bg3 {[%emt 0:02:16]} Qc7 {[%emt 0:01:38] B13: Caro-Kann: Exchange Variation and Panov-Botvinnik Attack} (8... O-O 9. O-O b6 10. Nbd2 Bb7 11. Ne5 Ne7 12. Qc2 Ng6 13. Rae1 Nh5 14. Nxg6 hxg6 15. Bxd6 Qxd6 16. Nf3 Nf4 {0-1 (63) Randazzo,A (2228)-Cruz Lledo,P (2448) Sueca 2017}) 9. Na3 {[%emt 0:01:52]} a6 {[%emt 0:00:11]} 10. Qa4 {[%emt 0:04:40]} Bxg3 $146 {[%emt 0:00:51]} ({Predecessor:} 10... Bd7 11. Nb5 axb5 12. Qxa8+ Nd8 13. O-O O-O 14. Rfe1 Nh5 15. Bxd6 Qxd6 16. Qa3 Qf4 17. Bxh7+ {1-0 (17) Vidal,J (2310)-Escofet Fernandez,J (2235) Cipolletti 1993}) 11. hxg3 {[%emt 0:00:15]} Bd7 {[%emt 0:01:23]} 12. Qc2 {[%emt 0:01:43]} g6 {[%emt 0:02:49]} 13. Qd2 {[%emt 0:05:48]} O-O-O {[%emt 0:06:35]} 14. Qg5 {[%emt 0:04:28]} Ne4 {[%emt 0:01:04]} 15. Qe3 {[%emt 0:10:14]} e5 {[%emt 0:03:38]} 16. Bxe4 {[%emt 0:18:02]} dxe4 {[%emt 0:00:20]} 17. Nxe5 {[%emt 0:05:33]} Nxe5 {[%emt 0:03:36]} 18. dxe5 {[%emt 0:00:12]} Qxe5 {[%emt 0:02:48]} 19. O-O {[%emt 0:03:31]} f5 {[%emt 0:03:24]} 20. Rfd1 {[%emt 0:03:10]} Be6 {[%emt 0:03:03]} 21. Rd4 {[%emt 0:05:55]} Rd7 {[%emt 0:03:59]} 22. Rad1 {[%emt 0:02:50]} Rhd8 {[%emt 0:01:29]} 23. Rxd7 {[%emt 0:02:59]} Rxd7 {[%emt 0:01:56]} 24. Rxd7 {[%emt 0:01:48]} Kxd7 $11 {[%emt 0:01:27]} 25. Qh6 {[%emt 0:05:12]} 1-0

[Event "95th Caplin Hastings Congress"]
[Site "Hastings"]
[Date "2020.01.01"]
[Round "5.54"]
[White "Kumar, Soham"]
[Black "Bryant, Marc A"]
[Result "1-0"]
[ECO "C63"]
[WhiteElo "1512"]
[BlackElo "1823"]
[Annotator "NA RC"]
[PlyCount "119"]
[EventDate "2019.12.28"]
[EventType "swiss"]
[EventCountry "ENG"]
[SourceTitle "playchess.com"]
[Source "ChessBase"]
[SourceQuality "1"]
[TimeControl "40/6600+30:3000+30"]

1. e4 {[%emt 0:09:33]} e5 {[%emt 0:10:55]} 2. Nf3 {[%emt 0:00:06]} Nc6 {[%emt 0:00:03]} 3. Bb5 {[%emt 0:00:08]} f5 {[%emt 0:00:07]} 4. Nc3 {[%emt 0:00:30]} fxe4 {[%emt 0:00:07]} 5. Nxe4 {[%emt 0:00:08]} d5 {[%emt 0:00:12]} 6. Ng3 {[%emt 0:03:21]} Bg4 {[%emt 0:00:26]} 7. h3 {[%emt 0:00:35]} Bxf3 {[%emt 0:01:33]} 8. Qxf3 {[%emt 0:00:13]} Nf6 {[%emt 0:00:22]} 9. O-O {[%emt 0:02:25]} Bc5 {[%emt 0:00:21] C63: Ruy Lopez: Schliemann/Jaenisch Defence} (9... Bd6 10. Nh5 e4 11. Nxf6+ Qxf6 12. Qxf6 gxf6 13. d3 O-O-O 14. dxe4 dxe4 15. Re1 f5 16. Kf1 Rde8 17. Bh6 {1-0 (43) Karpov,A (2780)-Lautier,J (2645) Ubeda 1994}) 10. Qc3 {[%emt 0:13:51]} Qe7 $146 {[%emt 0:06:49]} ({Predecessor:} 10... Nd7 11. Qf3 {½-½ (15) Setkauskas,V (2301)-Vaicekauskas,G (2202) Kaunas 2015}) 11. Nf5 {[%emt 0:00:39]} Ne4 {[%emt 0:11:48]} 12. Nxe7 {[%emt 0:07:02] Pin} Nxc3 {[%emt 0:00:00]} 13. Nxc6 {[%emt 0:00:02]} Nxb5 {[%emt 0:00:00]} 14. Nxe5 {[%emt 0:00:03]} Nd4 {[%emt 0:00:00]} 15. c3 {[%emt 0:00:35]} Ne2+ {[%emt 0:00:00]} 16. Kh1 {[%emt 0:00:09]} Rf8 {[%emt 0:00:00]} 17. Re1 {[%emt 0:10:51]} Nxc1 {[%emt 0:08:12]} 18. Nd3+ {[%emt 0:03:47]} Kd7 $2 {[%emt 0:01:30]} (18... Be7 $16 {was called for.} 19. Raxc1 c6) 19. Nxc5+ {[%emt 0:00:14]} Kc6 {[%emt 0:00:09]} 20. d4 {[%emt 0:01:33]} ({Weaker is} 20. Rexc1 Kxc5 21. f3 Rae8 $14) 20... b6 {[%emt 0:00:20]} 21. Raxc1 $2 {[%emt 0:01:44]} (21. Re6+ $18 {and the rest is easy.} Kb5 22. Nd7 (22. Rxc1 bxc5 23. Re7 Rxf2 $16)) 21... bxc5 {[%emt 0:00:05]} 22. f3 {[%emt 0:00:45]} Rfe8 {[%emt 0:01:57]} 23. dxc5 {[%emt 0:01:33]} Kxc5 {[%emt 0:00:08]} 24. Kg1 {[%emt 0:00:30]} Rab8 {[%emt 0:00:33]} 25. b3 {[%emt 0:00:21]} a5 {[%emt 0:01:12]} 26. Kf2 {[%emt 0:08:09]} a4 {[%emt 0:00:19]} 27. b4+ {[%emt 0:00:41]} Kc4 {[%emt 0:00:14]} 28. Red1 {[%emt 0:00:22]} c5 {[%emt 0:00:33]} 29. h4 {[%emt 0:03:58]} Rb6 {[%emt 0:00:37]} 30. g4 {[%emt 0:00:29]} Rh6 {[%emt 0:03:18]} (30... a3 $11 {remains equal.}) 31. Kg3 {[%emt 0:02:56]} Rhe6 {[%emt 0:04:33]} 32. bxc5 {[%emt 0:02:38]} Re2 {[%emt 0:02:21]} (32... a3 $16) 33. Rd4+ {[%emt 0:00:33]} Kb5 {[%emt 0:02:25]} 34. Rb4+ {[%emt 0:01:26]} Kxc5 {[%emt 0:00:06]} 35. Rxa4 {[%emt 0:00:06]} h6 {[%emt 0:00:58]} 36. Ra7 {[%emt 0:03:05]} g5 {[%emt 0:01:21]} 37. hxg5 {[%emt 0:00:46]} hxg5 {[%emt 0:00:06]} 38. Rg7 {[%emt 0:00:14]} R8e5 {[%emt 0:00:11]} 39. Ra1 {[%emt 0:01:42]} Rc2 {[%emt 0:01:03]} 40. a4 {[%emt 0:01:36]} Rxc3 {[%emt 0:00:54]} 41. a5 {[%emt 0:50:13]} Kb5 {[%emt 0:53:27]} 42. a6 {[%emt 0:00:36]} Ree3 {[%emt 0:00:20]} 43. Rf7 {[%emt 0:01:00]} Ra3 {[%emt 0:00:20]} 44. Rxa3 {[%emt 0:00:39]} Rxa3 {[%emt 0:00:05]} 45. Rf5 $18 {[%emt 0:01:40]} Kc4 {[%emt 0:00:28]} 46. Rxg5 {[%emt 0:00:50]} d4 {[%emt 0:00:11]} 47. Kf2 $2 {[%emt 0:00:18]} ({White should try} 47. Rg7 $18) 47... Kd3 $2 {[%emt 0:00:08]} (47... Rxa6 $11 48. Rg7 Ra2+ 49. Kf1 d3) 48. f4 {[%emt 0:00:26]} Ra2+ {[%emt 0:00:53]} 49. Kf3 {[%emt 0:00:09]} Rxa6 {[%emt 0:00:30]} 50. Rc5 {[%emt 0:04:34]} Ra3 {[%emt 0:00:42]} 51. f5 {[%emt 0:00:23]} Kd2+ {[%emt 0:00:10]} 52. Kf2 {[%emt 0:00:07]} Re3 {[%emt 0:01:23]} 53. f6 {[%emt 0:01:48]} Re2+ {[%emt 0:01:04]} 54. Kf1 {[%emt 0:01:32]} Re4 {[%emt 0:01:01]} 55. Rf5 {[%emt 0:00:55]} Re1+ {[%emt 0:00:55]} 56. Kg2 {[%emt 0:00:11]} Re8 {[%emt 0:00:31]} 57. f7 {[%emt 0:00:18]} Rf8 {[%emt 0:00:04]} 58. g5 {[%emt 0:00:05]} Ke3 {[%emt 0:01:26]} 59. g6 {[%emt 0:00:12]} Ke4 {[%emt 0:01:39]} 60. g7 {[%emt 0:00:12]} 1-0

[Event "95th Caplin Hastings Congress"]
[Site "Hastings"]
[Date "2020.01.01"]
[Round "5.55"]
[White "Drastik, Penelope"]
[Black "Cresswell, Mike J"]
[Result "1-0"]
[ECO "A57"]
[WhiteElo "1821"]
[BlackElo "1662"]
[Annotator "NA RC"]
[PlyCount "67"]
[EventDate "2019.12.28"]
[EventType "swiss"]
[EventCountry "ENG"]
[SourceTitle "playchess.com"]
[Source "ChessBase"]
[SourceQuality "1"]
[TimeControl "40/6600+30:3000+30"]

1. d4 {[%emt 1:18:31]} Nf6 {[%emt 0:00:06]} 2. c4 {[%emt 0:00:05]} c5 {[%emt 0:00:50]} 3. d5 {[%emt 0:00:03]} b5 {[%emt 0:00:19]} 4. cxb5 {[%emt 0:00:05]} a6 {[%emt 0:00:17]} 5. b6 {[%emt 0:00:02]} Qxb6 {[%emt 0:00:17]} 6. Nc3 {[%emt 0:00:03]} g6 {[%emt 0:00:24]} 7. Nf3 {[%emt 0:00:06]} d6 {[%emt 0:00:27]} 8. Nd2 {[%emt 0:00:08]} Bg7 {[%emt 0:00:55]} 9. e4 {[%emt 0:00:24]} O-O {[%emt 0:00:28]} 10. Nc4 {[%emt 0:00:29] A57: Benko/Volga Gambit} Qc7 {[%emt 0:00:56]} (10... Qb7 11. Be2 Nfd7 12. O-O Nb6 13. Na5 Qc7 14. Bd2 e6 15. Rc1 Nxd5 16. Na4 Nb6 17. b4 Nxa4 18. Qxa4 {0-1 (50) Boensch,U (2543)-Lauber,A (2441) Germany 2014}) 11. a4 {[%emt 0:00:21]} Nfd7 {[%emt 0:02:24]} 12. a5 {[%emt 0:00:17]} Bb7 $146 {[%emt 0:06:27]} ({Predecessor:} 12... Ne5 13. Nb6 Ra7 14. Be2 Ned7 15. Nc4 Ne5 16. Ne3 f5 17. f4 Nf7 18. exf5 gxf5 {1-0 (50) Maksimenko,A (2440)-Zimmer,R (2250) Berlin 1993}) 13. Be2 {[%emt 0:05:10]} Re8 {[%emt 0:04:58]} 14. O-O {[%emt 0:03:26]} Nf8 {[%emt 0:02:24]} 15. Nb6 {[%emt 0:09:32]} Ra7 {[%emt 0:00:30]} 16. Bf4 {[%emt 0:05:29]} Nbd7 {[%emt 0:02:04]} 17. Nca4 {[%emt 0:00:32]} Qd8 {[%emt 0:05:02]} 18. Qd2 {[%emt 0:01:05]} Nxb6 {[%emt 0:02:38]} 19. Nxb6 {[%emt 0:00:30]} Nd7 {[%emt 0:00:42]} 20. Nc4 $16 {[%emt 0:01:04]} Qc7 {[%emt 0:04:38]} 21. Bh6 {[%emt 0:01:13]} Rb8 {[%emt 0:02:49]} 22. Bxg7 {[%emt 0:00:32]} Kxg7 {[%emt 0:00:09]} 23. f4 {[%emt 0:00:11]} Ba8 {[%emt 0:09:26]} 24. f5 {[%emt 0:03:35]} Nf6 {[%emt 0:02:27]} 25. Qf4 {[%emt 0:01:07]} Rb4 {[%emt 0:03:40]} 26. g4 {[%emt 0:03:56]} Qd8 {[%emt 0:08:38]} 27. Ra3 {[%emt 0:13:11]} Nxd5 {[%emt 0:09:03]} 28. exd5 {[%emt 0:00:24]} Bxd5 {[%emt 0:00:11]} 29. Rh3 {[%emt 0:00:48]} Qh8 {[%emt 0:02:04]} 30. Qh6+ {[%emt 0:01:15]} Kg8 {[%emt 0:00:32]} 31. fxg6 {[%emt 0:00:17]} Qd4+ {[%emt 0:04:12]} 32. Ne3 {[%emt 0:00:22]} hxg6 {[%emt 0:01:32]} 33. Rd1 {[%emt 0:00:31]} Qf6 {[%emt 0:02:20]} 34. Nxd5 {[%emt 0:00:17]} 1-0

[Event "95th Caplin Hastings Congress"]
[Site "Hastings"]
[Date "2020.01.01"]
[Round "5.56"]
[White "Zheng, Harry Z"]
[Black "Varney, Zoe"]
[Result "0-1"]
[ECO "C54"]
[WhiteElo "1705"]
[BlackElo "2004"]
[Annotator "NA RC"]
[PlyCount "66"]
[EventDate "2019.12.28"]
[EventType "swiss"]
[EventCountry "ENG"]
[SourceTitle "playchess.com"]
[Source "ChessBase"]
[SourceQuality "1"]
[TimeControl "40/6600+30:3000+30"]

1. e4 {[%emt 0:09:33]} e5 {[%emt 0:11:56]} 2. Nf3 {[%emt 0:00:07]} Nc6 {[%emt 0:00:05]} 3. Bc4 {[%emt 0:00:11]} Bc5 {[%emt 0:00:05]} 4. c3 {[%emt 0:00:09]} Nf6 {[%emt 0:00:04]} 5. d3 {[%emt 0:00:12]} d6 {[%emt 0:00:56]} 6. O-O {[%emt 0:00:38]} Bg4 {[%emt 0:03:40]} 7. Nbd2 {[%emt 0:00:43]} a6 {[%emt 0:00:31]} 8. h3 {[%emt 0:02:52]} Bh5 {[%emt 0:06:34]} 9. Bb3 {[%emt 0:01:34]} O-O {[%emt 0:05:56]} 10. Re1 {[%emt 0:02:17]} Ba7 {[%emt 0:02:50]} 11. Nf1 {[%emt 0:00:25]} Re8 {[%emt 0:11:59]} 12. Ng3 {[%emt 0:04:05]} Bg6 {[%emt 0:01:14]} 13. Bc2 {[%emt 0:12:54]} ({White should try} 13. Bg5 $16) 13... d5 {[%emt 0:04:39]} 14. exd5 {[%emt 0:07:17]} Nxd5 {[%emt 0:06:48]} 15. Ba4 {[%emt 0:21:43]} b5 {[%emt 0:05:57]} 16. Bc2 {[%emt 0:02:27]} h6 {[%emt 0:08:45]} 17. a4 $11 {[%emt 0:24:23]} Qd7 {[%emt 0:07:16]} 18. Bd2 {[%emt 0:07:22]} Nf6 {[%emt 0:16:50]} 19. Ne4 {[%emt 0:01:52]} Nxe4 {[%emt 0:02:26]} 20. dxe4 {[%emt 0:00:13]} Rad8 {[%emt 0:04:36]} 21. Qe2 {[%emt 0:02:24]} Bh5 {[%emt 0:01:51]} 22. Red1 {[%emt 0:01:31]} Qe6 {[%emt 0:01:13]} 23. axb5 {[%emt 0:02:52]} axb5 {[%emt 0:00:05]} 24. Bd3 {[%emt 0:00:51]} Bxf3 {[%emt 0:01:39]} 25. Qxf3 {[%emt 0:00:11]} Qb3 {[%emt 0:02:32]} 26. Rdb1 {[%emt 0:03:02]} b4 {[%emt 0:03:41]} 27. Bb5 {[%emt 0:07:04]} Re6 {[%emt 0:07:03]} 28. Bxc6 {[%emt 0:01:56]} Rf6 {[%emt 0:00:11]} 29. Qe2 {[%emt 0:01:30]} Rxf2 {[%emt 0:00:52]} 30. Qa6 {[%emt 0:00:36]} Rdxd2 {[%emt 0:00:20]} 31. Qxa7 {[%emt 0:00:18]} Rxg2+ {[%emt 0:00:06]} 32. Kf1 {[%emt 0:00:12]} Qc4+ {[%emt 0:00:11]} 33. Ke1 {[%emt 0:00:23]} Qe2# {[%emt 0:00:08]} 0-1

[Event "95th Caplin Hastings Congress"]
[Site "Hastings"]
[Date "2020.01.01"]
[Round "5.57"]
[White "Liu, Tianyi"]
[Black "Stoyanov, Boris"]
[Result "1/2-1/2"]
[ECO "B35"]
[WhiteElo "1307"]
[BlackElo "1504"]
[Annotator "NA RC"]
[PlyCount "139"]
[EventDate "2019.12.28"]
[EventType "swiss"]
[EventCountry "ENG"]
[SourceTitle "playchess.com"]
[Source "ChessBase"]
[SourceQuality "1"]
[TimeControl "40/6600+30:3000+30"]

1. e4 {[%emt 0:09:54]} c5 {[%emt 0:13:00]} 2. Nf3 {[%emt 0:00:25]} g6 {[%emt 0:00:11]} 3. d4 {[%emt 0:00:11]} Bg7 {[%emt 0:00:06]} 4. Nc3 {[%emt 0:06:52]} cxd4 {[%emt 0:00:11]} 5. Nxd4 {[%emt 0:00:07]} Nc6 {[%emt 0:00:06]} 6. Be3 {[%emt 0:00:17]} Nf6 {[%emt 0:00:06]} 7. Bc4 {[%emt 0:00:14]} O-O {[%emt 0:00:08]} 8. Bb3 {[%emt 0:00:03]} a6 {[%emt 0:02:38]} 9. f3 {[%emt 0:02:16]} Re8 {[%emt 0:08:18]} 10. Qd2 {[%emt 0:01:29]} d6 {[%emt 0:05:38]} 11. O-O-O {[%emt 0:00:29]} Bd7 {[%emt 0:11:34]} 12. h4 {[%emt 0:00:07]} Na5 {[%emt 0:22:59]} 13. g4 {[%emt 0:07:05]} Nxb3+ {[%emt 0:00:55]} 14. Nxb3 {[%emt 0:00:23]} h5 {[%emt 0:12:19]} 15. e5 {[%emt 0:05:21]} Nh7 {[%emt 0:12:46]} 16. exd6 {[%emt 0:00:48]} exd6 {[%emt 0:06:28]} 17. gxh5 {[%emt 0:00:32]} gxh5 {[%emt 0:08:09]} 18. Rdg1 {[%emt 0:01:03]} Bf5 {[%emt 0:00:34]} 19. Bh6 {[%emt 0:01:00]} Bg6 {[%emt 0:00:18]} 20. Bxg7 {[%emt 0:03:26]} Kxg7 {[%emt 0:00:18]} 21. Ne4 {[%emt 0:08:08]} d5 {[%emt 0:01:13]} 22. Ng3 {[%emt 0:02:02]} Kh8 {[%emt 0:03:32]} 23. Ne2 {[%emt 0:02:58]} Rc8 {[%emt 0:01:21]} 24. c3 {[%emt 0:00:50]} Qf6 {[%emt 0:01:24]} 25. Ned4 {[%emt 0:03:24]} Re7 {[%emt 0:02:09]} 26. Re1 {[%emt 0:01:39]} Rce8 {[%emt 0:00:34]} 27. Rxe7 {[%emt 0:01:19]} Qxe7 {[%emt 0:01:05]} 28. Kd1 {[%emt 0:02:19]} Qe3 {[%emt 0:00:42]} 29. Qxe3 {[%emt 0:00:26]} Rxe3 {[%emt 0:00:05]} 30. Kd2 {[%emt 0:00:12]} Re8 {[%emt 0:00:32]} 31. Nc5 {[%emt 0:00:54]} Nf6 {[%emt 0:01:32]} 32. Nd3 {[%emt 0:00:22]} Nd7 {[%emt 0:01:03]} 33. Nf4 {[%emt 0:00:37]} Nb6 {[%emt 0:01:06]} 34. b3 {[%emt 0:00:51]} Re7 {[%emt 0:01:00]} 35. Rg1 {[%emt 0:00:58]} Kh7 {[%emt 0:00:24]} 36. Rg5 {[%emt 0:00:50]} Kh6 {[%emt 0:01:11]} 37. Nxd5 {[%emt 0:02:24]} Nxd5 {[%emt 0:00:29]} 38. Rxd5 {[%emt 0:00:10]} f6 {[%emt 0:00:43]} 39. Rd6 {[%emt 0:04:32]} Rf7 {[%emt 0:00:53]} 40. b4 {[%emt 0:02:10]} Kh7 {[%emt 0:01:06]} 41. Nb3 {[%emt 0:51:42]} Bf5 {[%emt 0:50:34]} 42. Nc5 {[%emt 0:01:02]} Kg6 {[%emt 0:00:00]} 43. a3 {[%emt 0:00:00]} Re7 {[%emt 0:00:00]} 44. Rb6 {[%emt 0:00:00]} Bc8 {[%emt 0:00:00]} 45. Ne4 {[%emt 0:00:00]} Be6 {[%emt 0:00:00]} 46. Ng3 {[%emt 0:00:00]} Bd5 {[%emt 0:00:00]} 47. f4 {[%emt 0:00:00]} Bc6 {[%emt 0:00:00]} 48. c4 {[%emt 0:00:00]} Rd7+ {[%emt 0:00:00]} 49. Ke2 {[%emt 0:00:00]} Re7+ {[%emt 0:00:00]} 50. Kf2 {[%emt 0:00:00]} Rd7 {[%emt 0:00:00]} 51. b5 {[%emt 0:00:00]} Rd2+ {[%emt 0:00:00]} 52. Ke3 {[%emt 0:00:00]} Rb2 {[%emt 0:00:00]} 53. a4 {[%emt 0:00:00]} Rb3+ {[%emt 0:00:00]} 54. Kd4 {[%emt 0:00:00]} axb5 {[%emt 0:00:00]} 55. axb5 {[%emt 0:00:00]} Rxg3 {[%emt 0:00:00]} 56. bxc6 {[%emt 0:00:00]} bxc6 {[%emt 0:00:00]} 57. Rxc6 {[%emt 0:00:00]} Kf5 {[%emt 0:00:00]} 58. Rc5+ {[%emt 0:00:00]} Kg4 {[%emt 0:00:00]} 59. Rc6 {[%emt 0:00:00]} f5 {[%emt 0:00:00]} 60. Rg6+ {[%emt 0:00:00]} Kxf4 {[%emt 0:00:00]} 61. Rxg3 {[%emt 0:00:00]} Kxg3 {[%emt 0:00:00]} 62. c5 {[%emt 0:00:00]} f4 {[%emt 0:00:00]} 63. c6 {[%emt 0:00:00]} f3 {[%emt 0:00:00]} 64. c7 {[%emt 0:00:00]} f2 {[%emt 0:00:00]} 65. c8=Q {[%emt 0:00:07]} f1=Q {[%emt 0:00:25]} 66. Qg8+ {[%emt 0:00:00]} Kxh4 {[%emt 0:00:00]} 67. Qd8+ {[%emt 0:00:00]} Kh3 {[%emt 0:00:00]} 68. Qd7+ {[%emt 0:00:00]} Kh2 {[%emt 0:00:00]} 69. Qd6+ {[%emt 0:00:00]} Kh3 {[%emt 0:00:00]} 70. Qe6+ {[%emt 0:01:31]} 1/2-1/2

[Event "95th Caplin Hastings Congress"]
[Site "Hastings"]
[Date "2020.01.02"]
[Round "6.5"]
[White "Stany, G.A."]
[Black "Bates, Richard A"]
[Result "1/2-1/2"]
[ECO "B90"]
[WhiteElo "2526"]
[BlackElo "2342"]
[Annotator "ChessBase"]
[PlyCount "62"]
[EventDate "2019.12.28"]
[EventType "swiss"]
[EventCountry "ENG"]
[SourceTitle "playchess.com"]
[Source "ChessBase"]
[SourceQuality "1"]
[TimeControl "40/6600+30:3000+30"]

1. e4 {[%emt 0:09:35]} c5 {[%emt 0:10:29]} 2. Nf3 {[%emt 0:00:04]} d6 {[%emt 0:00:37]} 3. d4 {[%emt 0:00:05]} cxd4 {[%emt 0:00:06]} 4. Nxd4 {[%emt 0:00:03]} Nf6 {[%emt 0:00:08]} 5. Nc3 {[%emt 0:00:03]} a6 {[%emt 0:00:13]} 6. h3 {[%emt 0:00:09]} e5 {[%emt 0:00:34]} 7. Nde2 {[%emt 0:00:09]} h5 {[%emt 0:01:22]} 8. Bg5 {[%emt 0:00:06]} Be6 {[%emt 0:00:48]} 9. Bxf6 {[%emt 0:00:07]} Qxf6 {[%emt 0:00:08]} 10. Nd5 {[%emt 0:00:03]} Qd8 {[%emt 0:01:52]} 11. Qd3 {[%emt 0:00:04]} Nd7 {[%emt 0:09:25]} 12. O-O-O {[%emt 0:00:07]} Rc8 {[%emt 0:05:54]} 13. Kb1 {[%emt 0:01:16]} g6 {[%emt 0:00:55]} 14. Nec3 {[%emt 0:00:54]} Bg7 {[%emt 0:03:42]} 15. h4 {[%emt 0:06:07]} b5 {[%emt 0:16:29]} 16. g3 {[%emt 0:01:27]} Rc4 {[%emt 0:07:37]} 17. Qe2 {[%emt 0:36:20]} O-O {[%emt 0:13:02]} 18. f3 {[%emt 0:06:49]} Rd4 {[%emt 0:04:36]} 19. g4 {[%emt 0:15:14]} b4 {[%emt 0:04:01]} 20. Na4 {[%emt 0:03:32]} Bxd5 {[%emt 0:03:21]} 21. exd5 {[%emt 0:10:05]} Rxd1+ {[%emt 0:05:21]} 22. Qxd1 {[%emt 0:00:05]} Qa5 {[%emt 0:00:37]} 23. c4 {[%emt 0:06:26]} bxc3 {[%emt 0:00:33]} 24. Nxc3 {[%emt 0:02:28]} Rb8 {[%emt 0:11:38]} 25. Ne4 {[%emt 0:02:55]} hxg4 {[%emt 0:09:34]} 26. fxg4 {[%emt 0:00:10]} Qb4 {[%emt 0:01:04]} 27. Qe2 {[%emt 0:00:05]} Nf6 {[%emt 0:02:45]} 28. Nxf6+ {[%emt 0:02:26]} Bxf6 {[%emt 0:00:04]} 29. Rh3 {[%emt 0:00:33]} Qd4 {[%emt 0:02:35]} 30. Rd3 {[%emt 0:01:21]} Qc5 {[%emt 0:00:31]} 31. g5 {[%emt 0:05:09]} e4 {[%emt 0:01:55]} 1/2-1/2

[Event "95th Caplin Hastings Congress"]
[Site "Hastings"]
[Date "2020.01.02"]
[Round "6.6"]
[White "Cherniaev, Alexander"]
[Black "Korneev, Oleg"]
[Result "1/2-1/2"]
[ECO "B23"]
[WhiteElo "2419"]
[BlackElo "2524"]
[Annotator "ChessBase"]
[PlyCount "109"]
[EventDate "2019.12.28"]
[EventType "swiss"]
[EventCountry "ENG"]
[SourceTitle "playchess.com"]
[Source "ChessBase"]
[SourceQuality "1"]
[TimeControl "40/6600+30:3000+30"]

1. e4 {[%emt 0:10:48]} c5 {[%emt 0:20:32]} 2. Nc3 {[%emt 0:00:06]} e6 {[%emt 0:00:07]} 3. Nge2 {[%emt 0:00:06]} a6 {[%emt 0:00:16]} 4. g3 {[%emt 0:00:10]} Nc6 {[%emt 0:04:21]} 5. Bg2 {[%emt 0:00:07]} d6 {[%emt 0:07:55]} 6. O-O {[%emt 0:01:15]} Nf6 {[%emt 0:07:26]} 7. d3 {[%emt 0:00:10]} Be7 {[%emt 0:00:07]} 8. h3 {[%emt 0:00:09]} Qc7 {[%emt 0:11:34]} 9. Be3 {[%emt 0:00:31]} b5 {[%emt 0:01:07]} 10. a3 {[%emt 0:00:05]} Rb8 {[%emt 0:01:09]} 11. f4 {[%emt 0:07:29]} d5 {[%emt 0:08:17]} 12. exd5 {[%emt 0:03:39]} exd5 {[%emt 0:01:02]} 13. f5 {[%emt 0:00:10]} d4 {[%emt 0:03:35]} 14. Bf4 {[%emt 0:02:18]} Ne5 {[%emt 0:05:43]} 15. Nd5 {[%emt 0:06:20]} Nxd5 {[%emt 0:00:13]} 16. Bxd5 {[%emt 0:00:03]} Bxf5 {[%emt 0:09:32]} 17. Nxd4 {[%emt 0:03:10]} cxd4 {[%emt 0:02:59]} 18. Qe2 {[%emt 0:00:01]} Bf6 {[%emt 0:03:26]} 19. Bxe5 {[%emt 0:02:14]} Qxe5 {[%emt 0:02:58]} 20. Qxe5+ {[%emt 0:00:21]} Bxe5 {[%emt 0:00:02]} 21. Rxf5 {[%emt 0:00:15]} f6 {[%emt 0:00:01]} 22. Kg2 {[%emt 0:01:33]} Kd7 {[%emt 0:00:29]} 23. Bb3 {[%emt 0:00:59]} a5 {[%emt 0:02:13]} 24. a4 {[%emt 0:00:06]} b4 {[%emt 0:00:26]} 25. Re1 {[%emt 0:01:48]} Kd6 {[%emt 0:00:09]} 26. Re2 {[%emt 0:00:46]} g6 {[%emt 0:05:29]} 27. Rf1 {[%emt 0:00:29]} Rbe8 {[%emt 0:00:13]} 28. Bc4 {[%emt 0:00:34]} Rc8 {[%emt 0:02:58]} 29. Rf3 {[%emt 0:01:56]} Rhe8 {[%emt 0:02:06]} 30. Bb3 {[%emt 0:00:39]} f5 {[%emt 0:02:45]} 31. Rf1 {[%emt 0:00:17]} Bg7 {[%emt 0:03:45]} 32. Rfe1 {[%emt 0:00:15]} Rxe2+ {[%emt 0:00:10]} 33. Rxe2 {[%emt 0:00:04]} Be5 {[%emt 0:00:05]} 34. Bc4 {[%emt 0:00:59]} Rc7 {[%emt 0:03:28]} 35. Re1 {[%emt 0:00:29]} h5 {[%emt 0:00:31]} 36. Re2 {[%emt 0:04:57]} Rh7 {[%emt 0:04:10]} 37. Re1 {[%emt 0:02:27]} h4 {[%emt 0:05:24]} 38. gxh4 {[%emt 0:00:33]} Rxh4 {[%emt 0:00:00]} 39. Re2 {[%emt 0:04:20]} g5 {[%emt 0:00:00]} 40. Re1 {[%emt 0:01:49]} g4 {[%emt 0:01:39]} 41. hxg4 {[%emt 0:56:54]} Rxg4+ {[%emt 0:51:16]} 42. Kf3 {[%emt 0:00:13]} Rh4 {[%emt 0:00:00]} 43. Rg1 {[%emt 0:00:00]} Rh3+ {[%emt 0:00:00]} 44. Kf2 {[%emt 0:00:00]} Bf6 {[%emt 0:00:00]} 45. Kg2 {[%emt 0:00:00]} Re3 {[%emt 0:00:00]} 46. Rf1 {[%emt 0:00:00]} Re5 {[%emt 0:00:00]} 47. Bf7 {[%emt 0:00:00]} Bg5 {[%emt 0:00:00]} 48. Bh5 {[%emt 0:00:00]} Be3 {[%emt 0:00:00]} 49. Bd1 {[%emt 0:00:00]} f4 {[%emt 0:00:00]} 50. Rh1 {[%emt 0:00:00]} Rg5+ {[%emt 0:00:00]} 51. Kf3 {[%emt 0:00:00]} Ke5 {[%emt 0:00:00]} 52. Rh3 {[%emt 0:00:00]} Kf5 {[%emt 0:00:00]} 53. b3 {[%emt 0:00:00]} Rg1 {[%emt 0:00:00]} 54. Be2 {[%emt 0:00:00]} Rg5 {[%emt 0:00:00]} 55. Bd1 {[%emt 0:00:00]} 1/2-1/2